[Event "Titled Tuesday Blitz September 27 Early 2022"]
[White "Tasev, Dejan"]
[Black "Haitin, Ilja"]
[WhiteFideId "936618"]
[BlackFideId "4501764"]
[WhiteElo "2256"]
[BlackElo "2243"]
[Result "1-0"]
[Round "09"]
[TimeControl "180+1"]
[Date "2022.09.27"]
[WhiteClock "0:00:18"]
[BlackClock "0:00:05"]

1. e4 {[%clk 0:03:00]}  d6 {[%clk 0:02:59]} 2. d4 {[%clk 0:03:00]}  Nf6 {[%clk 0:02:59]} 3. Nc3 {[%clk 0:03:00]}  e5 {[%clk 0:02:59]} 4. Nge2 {[%clk 0:02:59]}  exd4 {[%clk 0:02:59]} 5. Nxd4 {[%clk 0:02:59]}  Be7 {[%clk 0:03:00]} 6. Bf4 {[%clk 0:02:59]}  O-O {[%clk 0:02:55]} 7. Qd2 {[%clk 0:02:49]}  Re8 {[%clk 0:02:42]} 8. O-O-O {[%clk 0:02:48]}  Bf8 {[%clk 0:02:42]} 9. f3 {[%clk 0:02:48]}  a6 {[%clk 0:02:42]} 10. g4 {[%clk 0:02:48]}  b5 {[%clk 0:02:40]} 11. Nf5 {[%clk 0:02:39]}  Be6 {[%clk 0:02:33]} 12. Rg1 {[%clk 0:02:32]}  Nbd7 {[%clk 0:02:24]} 13. h4 {[%clk 0:02:23]}  c5 {[%clk 0:02:22]} 14. Nxd6 {[%clk 0:01:58]}  Bxd6 {[%clk 0:02:04]} 15. Qxd6 {[%clk 0:01:56]}  Qa5 {[%clk 0:01:40]} 16. Qc7 {[%clk 0:01:45]}  Nb6 {[%clk 0:01:36]} 17. Rd6 {[%clk 0:01:27]}  Nfd7 {[%clk 0:01:21]} 18. Rxd7 {[%clk 0:01:13]}  Rac8 {[%clk 0:00:33]} 19. Re7 {[%clk 0:00:47]}  Rxe7 {[%clk 0:00:15]} 20. Qxe7 {[%clk 0:00:46]}  b4 {[%clk 0:00:16]} 21. Nb1 {[%clk 0:00:38]}  Qxa2 {[%clk 0:00:13]} 22. Be5 {[%clk 0:00:35]}  Nd7 {[%clk 0:00:11]} 23. Bf4 {[%clk 0:00:26]}  c4 {[%clk 0:00:11]} 24. Qxb4 {[%clk 0:00:25]}  c3 {[%clk 0:00:10]} 25. Nxc3 {[%clk 0:00:24]}  Qa1+ {[%clk 0:00:10]} 26. Kd2 {[%clk 0:00:24]}  Nc5 {[%clk 0:00:10]} 27. Bd6 {[%clk 0:00:19]}  Nd7 {[%clk 0:00:08]} 28. Ke3 {[%clk 0:00:17]}  Nf6 {[%clk 0:00:08]} 29. Kf2 {[%clk 0:00:17]}  Qc1 {[%clk 0:00:07]} 30. Bd3 {[%clk 0:00:17]}  Qd2+ {[%clk 0:00:07]} 31. Ne2 {[%clk 0:00:18]}  h5 {[%clk 0:00:05]} 32. Qxd2 {[%clk 0:00:18]} 1-0


[Site "https://www.chess.com"]

[Event "Titled Tuesday Blitz September 27 Early 2022"]
[White "Terzi, Alexei"]
[Black "Guz, Ari"]
[WhiteFideId "13505076"]
[BlackFideId "2825759"]
[WhiteElo "2031"]
[BlackElo "1913"]
[Result "1-0"]
[Round "09"]
[TimeControl "180+1"]
[Date "2022.09.27"]
[WhiteClock "0:00:52"]
[BlackClock "0:00:43"]

1. e4 {[%clk 0:03:00]}  Nf6 {[%clk 0:02:54]} 2. e5 {[%clk 0:03:00]}  Nd5 {[%clk 0:02:54]} 3. f4 {[%clk 0:03:00]}  d6 {[%clk 0:02:53]} 4. Nf3 {[%clk 0:02:57]}  Bf5 {[%clk 0:02:50]} 5. d4 {[%clk 0:02:55]}  e6 {[%clk 0:02:48]} 6. Bd3 {[%clk 0:02:47]}  Bxd3 {[%clk 0:02:45]} 7. Qxd3 {[%clk 0:02:46]}  dxe5 {[%clk 0:02:45]} 8. fxe5 {[%clk 0:02:46]}  c5 {[%clk 0:02:42]} 9. O-O {[%clk 0:02:42]}  cxd4 {[%clk 0:02:42]} 10. Ng5 {[%clk 0:02:39]}  Nf6 {[%clk 0:02:31]} 11. exf6 {[%clk 0:02:32]}  gxf6 {[%clk 0:02:32]} 12. Nf3 {[%clk 0:02:18]}  Nc6 {[%clk 0:02:31]} 13. c3 {[%clk 0:02:10]}  dxc3 {[%clk 0:02:23]} 14. Qxd8+ {[%clk 0:02:09]}  Rxd8 {[%clk 0:02:23]} 15. Nxc3 {[%clk 0:02:09]}  Bc5+ {[%clk 0:02:24]} 16. Kh1 {[%clk 0:02:08]}  Nb4 {[%clk 0:02:24]} 17. Bf4 {[%clk 0:01:54]}  Nd3 {[%clk 0:02:22]} 18. Bg3 {[%clk 0:01:51]}  f5 {[%clk 0:02:22]} 19. Ne5 {[%clk 0:01:48]}  Nb4 {[%clk 0:02:10]} 20. Rad1 {[%clk 0:01:44]}  O-O {[%clk 0:02:09]} 21. Bh4 {[%clk 0:01:37]}  Rxd1 {[%clk 0:01:55]} 22. Rxd1 {[%clk 0:01:38]}  Rc8 {[%clk 0:01:44]} 23. Rd8+ {[%clk 0:01:36]}  Rxd8 {[%clk 0:01:43]} 24. Bxd8 {[%clk 0:01:37]}  Bd4 {[%clk 0:01:44]} 25. a3 {[%clk 0:01:22]}  Nc2 {[%clk 0:01:30]} 26. Nc4 {[%clk 0:01:16]}  Bxc3 {[%clk 0:01:25]} 27. bxc3 {[%clk 0:01:17]}  b5 {[%clk 0:01:25]} 28. Ne5 {[%clk 0:01:11]}  Nxa3 {[%clk 0:01:24]} 29. Nc6 {[%clk 0:01:10]}  a6 {[%clk 0:01:23]} 30. Nb8 {[%clk 0:01:09]}  Nb1 {[%clk 0:01:22]} 31. Ba5 {[%clk 0:01:08]}  e5 {[%clk 0:01:16]} 32. Nxa6 {[%clk 0:01:08]}  e4 {[%clk 0:01:16]} 33. Kg1 {[%clk 0:01:08]}  Nd2 {[%clk 0:01:10]} 34. Bb6 {[%clk 0:00:57]}  Nc4 {[%clk 0:01:05]} 35. Bd4 {[%clk 0:00:55]}  Na3 {[%clk 0:00:43]} 36. Nc7 {[%clk 0:00:53]}  Kf8 {[%clk 0:00:43]} 37. Bc5+ {[%clk 0:00:52]} 1-0


[Site "https://www.chess.com"]

[Event "Titled Tuesday Blitz September 27 Early 2022"]
[White "Thiel, Thomas"]
[Black "Pourkashiyan, Atousa"]
[WhiteFideId "4615964"]
[BlackFideId "12502014"]
[WhiteElo "2212"]
[BlackElo "2247"]
[Result "1/2-1/2"]
[Round "09"]
[TimeControl "180+1"]
[Date "2022.09.27"]
[WhiteClock "0:01:56"]
[BlackClock "0:02:33"]

1. e4 {[%clk 0:03:00]}  c5 {[%clk 0:02:55]} 2. Nc3 {[%clk 0:02:58]}  e6 {[%clk 0:02:55]} 3. Nge2 {[%clk 0:02:57]}  a6 {[%clk 0:02:56]} 4. g3 {[%clk 0:02:57]}  b5 {[%clk 0:02:56]} 5. Bg2 {[%clk 0:02:57]}  Bb7 {[%clk 0:02:53]} 6. d4 {[%clk 0:02:57]}  cxd4 {[%clk 0:02:50]} 7. Nxd4 {[%clk 0:02:58]}  Nc6 {[%clk 0:02:50]} 8. O-O {[%clk 0:02:54]}  Qc7 {[%clk 0:02:50]} 9. Re1 {[%clk 0:02:50]}  Nge7 {[%clk 0:02:50]} 10. Ndxb5 {[%clk 0:02:31]}  axb5 {[%clk 0:02:49]} 11. Nxb5 {[%clk 0:02:32]}  Qb6 {[%clk 0:02:48]} 12. Nd6+ {[%clk 0:02:29]}  Kd8 {[%clk 0:02:48]} 13. Be3 {[%clk 0:02:28]}  Qc7 {[%clk 0:02:33]} 14. Nxf7+ {[%clk 0:02:18]}  Ke8 {[%clk 0:02:32]} 15. Nd6+ {[%clk 0:02:15]}  Kd8 {[%clk 0:02:32]} 16. Nf7+ {[%clk 0:02:14]}  Ke8 {[%clk 0:02:32]} 17. Nd6+ {[%clk 0:02:13]}  Kd8 {[%clk 0:02:33]} 18. Nf7+ {[%clk 0:01:56]} 1/2-1/2


[Site "https://www.chess.com"]

[Event "Titled Tuesday Blitz September 27 Early 2022"]
[White "Thorhallsson, Simon"]
[Black "Shuvalov, Evgenij"]
[WhiteFideId "2310090"]
[BlackFideId "4187237"]
[WhiteElo "2137"]
[BlackElo "2033"]
[Result "0-1"]
[Round "09"]
[TimeControl "180+1"]
[Date "2022.09.27"]
[WhiteClock "0:00:04"]
[BlackClock "0:00:20"]

1. e4 {[%clk 0:02:49]}  e6 {[%clk 0:02:59]} 2. d4 {[%clk 0:02:45]}  d5 {[%clk 0:02:59]} 3. exd5 {[%clk 0:02:46]}  exd5 {[%clk 0:02:59]} 4. Nc3 {[%clk 0:02:40]}  Nf6 {[%clk 0:02:57]} 5. h3 {[%clk 0:02:38]}  Bf5 {[%clk 0:02:54]} 6. Bd3 {[%clk 0:02:36]}  Bxd3 {[%clk 0:02:52]} 7. Qxd3 {[%clk 0:02:37]}  c6 {[%clk 0:02:52]} 8. Bf4 {[%clk 0:02:34]}  Bd6 {[%clk 0:02:50]} 9. Nge2 {[%clk 0:02:31]}  O-O {[%clk 0:02:49]} 10. O-O-O {[%clk 0:02:24]}  Na6 {[%clk 0:02:44]} 11. g4 {[%clk 0:02:22]}  Nb4 {[%clk 0:02:42]} 12. Qf3 {[%clk 0:02:18]}  Ne4 {[%clk 0:02:31]} 13. Nxe4 {[%clk 0:02:03]}  dxe4 {[%clk 0:02:31]} 14. Qxe4 {[%clk 0:02:03]}  Re8 {[%clk 0:02:26]} 15. Qf3 {[%clk 0:01:42]}  Rxe2 {[%clk 0:02:05]} 16. Qxe2 {[%clk 0:01:41]}  Bxf4+ {[%clk 0:02:03]} 17. Kb1 {[%clk 0:01:42]}  Qd5 {[%clk 0:01:59]} 18. c4 {[%clk 0:01:39]}  Qd6 {[%clk 0:01:49]} 19. Rhe1 {[%clk 0:01:36]}  h6 {[%clk 0:01:47]} 20. a3 {[%clk 0:01:25]}  Na6 {[%clk 0:01:47]} 21. Qe7 {[%clk 0:01:21]}  Nc7 {[%clk 0:01:42]} 22. Ka2 {[%clk 0:00:49]}  Rd8 {[%clk 0:01:33]} 23. Re4 {[%clk 0:00:42]}  Qxe7 {[%clk 0:01:30]} 24. Rxe7 {[%clk 0:00:42]}  Bd6 {[%clk 0:01:31]} 25. Re4 {[%clk 0:00:39]}  Ne6 {[%clk 0:01:28]} 26. d5 {[%clk 0:00:32]}  Ng5 {[%clk 0:01:22]} 27. Re3 {[%clk 0:00:23]}  Bf4 {[%clk 0:01:15]} 28. Red3 {[%clk 0:00:22]}  c5 {[%clk 0:01:15]} 29. d6 {[%clk 0:00:20]}  Rd7 {[%clk 0:01:13]} 30. h4 {[%clk 0:00:19]}  Ne6 {[%clk 0:01:12]} 31. Rd5 {[%clk 0:00:19]}  b6 {[%clk 0:01:10]} 32. b4 {[%clk 0:00:18]}  g5 {[%clk 0:01:08]} 33. h5 {[%clk 0:00:18]}  Kg7 {[%clk 0:01:05]} 34. Kb3 {[%clk 0:00:18]}  Kf6 {[%clk 0:01:05]} 35. Ka4 {[%clk 0:00:18]}  Be5 {[%clk 0:00:55]} 36. Kb5 {[%clk 0:00:17]}  Nd4+ {[%clk 0:00:52]} 37. Ka6 {[%clk 0:00:14]}  Ke6 {[%clk 0:00:47]} 38. bxc5 {[%clk 0:00:14]}  bxc5 {[%clk 0:00:47]} 39. Re1 {[%clk 0:00:14]}  f6 {[%clk 0:00:47]} 40. Rb1 {[%clk 0:00:08]}  Nc2 {[%clk 0:00:25]} 41. Rb3 {[%clk 0:00:07]}  Bxd6 {[%clk 0:00:21]} 42. Kb5 {[%clk 0:00:06]}  Nd4+ {[%clk 0:00:20]} 43. Rxd4 {[%clk 0:00:06]}  cxd4 {[%clk 0:00:20]} 44. c5 {[%clk 0:00:04]}  Rb7+ {[%clk 0:00:20]} 45. Kc6 {[%clk 0:00:03]}  Rxb3 {[%clk 0:00:20]} 46. cxd6 {[%clk 0:00:04]}  Rc3+ {[%clk 0:00:20]} 0-1


[Site "https://www.chess.com"]

[Event "Titled Tuesday Blitz September 27 Early 2022"]
[White "Vignesh, N R"]
[Black "Badelka, Olga"]
[WhiteFideId "25012215"]
[BlackFideId "13509926"]
[WhiteElo "2363"]
[BlackElo "2165"]
[Result "1-0"]
[Round "09"]
[TimeControl "180+1"]
[Date "2022.09.27"]
[WhiteClock "0:00:29"]
[BlackClock "0:00:04"]

1. d4 {[%clk 0:02:56]}  Nf6 {[%clk 0:02:59]} 2. c4 {[%clk 0:02:56]}  e6 {[%clk 0:02:59]} 3. Nf3 {[%clk 0:02:55]}  d5 {[%clk 0:02:59]} 4. Nc3 {[%clk 0:02:55]}  Bb4 {[%clk 0:02:57]} 5. Bg5 {[%clk 0:02:49]}  h6 {[%clk 0:02:52]} 6. Bxf6 {[%clk 0:02:46]}  Qxf6 {[%clk 0:02:53]} 7. e3 {[%clk 0:02:47]}  O-O {[%clk 0:02:50]} 8. Rc1 {[%clk 0:02:46]}  c5 {[%clk 0:02:47]} 9. dxc5 {[%clk 0:02:39]}  dxc4 {[%clk 0:02:42]} 10. Bxc4 {[%clk 0:02:35]}  Bxc5 {[%clk 0:02:22]} 11. O-O {[%clk 0:02:35]}  Bb6 {[%clk 0:02:12]} 12. Qe2 {[%clk 0:01:42]}  Nc6 {[%clk 0:02:09]} 13. Rfd1 {[%clk 0:01:41]}  Ne5 {[%clk 0:01:35]} 14. Ne4 {[%clk 0:01:00]}  Nxf3+ {[%clk 0:01:34]} 15. gxf3 {[%clk 0:01:01]}  Qe7 {[%clk 0:01:18]} 16. Bb5 {[%clk 0:00:58]}  e5 {[%clk 0:01:13]} 17. Kh1 {[%clk 0:00:56]}  Be6 {[%clk 0:01:12]} 18. Bc4 {[%clk 0:00:46]}  Rac8 {[%clk 0:00:58]} 19. Bxe6 {[%clk 0:00:46]}  Qxe6 {[%clk 0:00:57]} 20. b3 {[%clk 0:00:46]}  Rxc1 {[%clk 0:00:45]} 21. Rxc1 {[%clk 0:00:46]}  f5 {[%clk 0:00:39]} 22. Nc5 {[%clk 0:00:46]}  Bxc5 {[%clk 0:00:30]} 23. Rxc5 {[%clk 0:00:45]}  Rc8 {[%clk 0:00:23]} 24. Rxc8+ {[%clk 0:00:42]}  Qxc8 {[%clk 0:00:24]} 25. Qd3 {[%clk 0:00:43]}  Qc6 {[%clk 0:00:20]} 26. Kg2 {[%clk 0:00:41]}  e4 {[%clk 0:00:16]} 27. fxe4 {[%clk 0:00:40]}  fxe4 {[%clk 0:00:16]} 28. Qd8+ {[%clk 0:00:39]}  Kf7 {[%clk 0:00:16]} 29. Qd4 {[%clk 0:00:38]}  Qg6+ {[%clk 0:00:14]} 30. Kf1 {[%clk 0:00:38]}  Qc6 {[%clk 0:00:14]} 31. Qxa7 {[%clk 0:00:37]}  Qb5+ {[%clk 0:00:05]} 32. Ke1 {[%clk 0:00:33]}  Qd3 {[%clk 0:00:06]} 33. Qxb7+ {[%clk 0:00:31]}  Kg6 {[%clk 0:00:06]} 34. Qc6+ {[%clk 0:00:28]}  Kh5 {[%clk 0:00:06]} 35. Qc1 {[%clk 0:00:28]}  Kg4 {[%clk 0:00:06]} 36. Qd1+ {[%clk 0:00:29]}  Qxd1+ {[%clk 0:00:04]} 37. Kxd1 {[%clk 0:00:29]}  Kf3 {[%clk 0:00:04]} 38. a4 {[%clk 0:00:29]}  Kxf2 {[%clk 0:00:04]} 39. a5 {[%clk 0:00:28]}  Kxe3 {[%clk 0:00:04]} 40. Ke1 {[%clk 0:00:29]} 1-0


[Site "https://www.chess.com"]

[Event "Titled Tuesday Blitz September 27 Early 2022"]
[White "Visakh N R"]
[Black "Makhnev, Denis"]
[WhiteFideId "25012223"]
[BlackFideId "13707647"]
[WhiteElo "2448"]
[BlackElo "2486"]
[Result "1-0"]
[Round "09"]
[TimeControl "180+1"]
[Date "2022.09.27"]
[WhiteClock "0:00:08"]
[BlackClock "0:00:11"]

1. c4 {[%clk 0:03:00]}  e5 {[%clk 0:02:59]} 2. g3 {[%clk 0:03:00]}  c6 {[%clk 0:02:59]} 3. d4 {[%clk 0:02:49]}  e4 {[%clk 0:02:59]} 4. Nc3 {[%clk 0:02:40]}  d5 {[%clk 0:02:58]} 5. Bg2 {[%clk 0:02:40]}  Nf6 {[%clk 0:02:56]} 6. Bg5 {[%clk 0:02:39]}  Nbd7 {[%clk 0:02:56]} 7. Nh3 {[%clk 0:02:35]}  h6 {[%clk 0:02:55]} 8. Bxf6 {[%clk 0:02:34]}  Nxf6 {[%clk 0:02:55]} 9. cxd5 {[%clk 0:02:35]}  cxd5 {[%clk 0:02:55]} 10. O-O {[%clk 0:02:34]}  Bd6 {[%clk 0:02:36]} 11. f3 {[%clk 0:02:34]}  exf3 {[%clk 0:02:30]} 12. exf3 {[%clk 0:02:33]}  O-O {[%clk 0:02:30]} 13. Qd3 {[%clk 0:02:28]}  Qb6 {[%clk 0:02:26]} 14. Rab1 {[%clk 0:02:19]}  g6 {[%clk 0:01:53]} 15. Qd2 {[%clk 0:01:59]}  Bf5 {[%clk 0:01:47]} 16. Rbc1 {[%clk 0:01:59]}  Kg7 {[%clk 0:01:41]} 17. Nf2 {[%clk 0:01:57]}  Rac8 {[%clk 0:01:35]} 18. Rfd1 {[%clk 0:01:49]}  g5 {[%clk 0:01:25]} 19. Bf1 {[%clk 0:01:45]}  a6 {[%clk 0:01:19]} 20. Na4 {[%clk 0:01:42]}  Qb4 {[%clk 0:01:18]} 21. Qxb4 {[%clk 0:01:38]}  Bxb4 {[%clk 0:01:18]} 22. Nc5 {[%clk 0:01:30]}  Rb8 {[%clk 0:01:17]} 23. Nfd3 {[%clk 0:01:22]}  Ba5 {[%clk 0:01:13]} 24. g4 {[%clk 0:01:18]}  Bc8 {[%clk 0:00:53]} 25. Ne5 {[%clk 0:01:12]}  h5 {[%clk 0:00:48]} 26. h3 {[%clk 0:01:10]}  Rd8 {[%clk 0:00:45]} 27. Rd3 {[%clk 0:01:05]}  Rd6 {[%clk 0:00:42]} 28. Kg2 {[%clk 0:01:01]}  hxg4 {[%clk 0:00:37]} 29. fxg4 {[%clk 0:00:58]}  Ng8 {[%clk 0:00:35]} 30. Rb3 {[%clk 0:00:48]}  Bb6 {[%clk 0:00:23]} 31. Rc2 {[%clk 0:00:24]}  Ne7 {[%clk 0:00:19]} 32. Bd3 {[%clk 0:00:16]}  Ba7 {[%clk 0:00:15]} 33. Nf3 {[%clk 0:00:12]}  f6 {[%clk 0:00:15]} 34. Be2 {[%clk 0:00:05]}  Ng6 {[%clk 0:00:14]} 35. Kg3 {[%clk 0:00:05]}  Rb6 {[%clk 0:00:04]} 36. Rxb6 {[%clk 0:00:04]}  Bxb6 {[%clk 0:00:05]} 37. Na4 {[%clk 0:00:04]}  Bd8 {[%clk 0:00:05]} 38. h4 {[%clk 0:00:04]}  gxh4+ {[%clk 0:00:03]} 39. Nxh4 {[%clk 0:00:05]}  Nxh4 {[%clk 0:00:04]} 40. Kxh4 {[%clk 0:00:06]}  Bd7 {[%clk 0:00:04]} 41. Nc5 {[%clk 0:00:05]}  Bc8 {[%clk 0:00:04]} 42. Kg3 {[%clk 0:00:05]}  Be7 {[%clk 0:00:04]} 43. Bd3 {[%clk 0:00:05]}  Bd6+ {[%clk 0:00:05]} 44. Kf3 {[%clk 0:00:06]}  a5 {[%clk 0:00:03]} 45. Re2 {[%clk 0:00:05]}  b6 {[%clk 0:00:03]} 46. Ne6+ {[%clk 0:00:05]}  Kf7 {[%clk 0:00:03]} 47. Bf5 {[%clk 0:00:05]}  Ba6 {[%clk 0:00:03]} 48. Re1 {[%clk 0:00:05]}  Rh8 {[%clk 0:00:03]} 49. Nf4 {[%clk 0:00:05]}  Rh2 {[%clk 0:00:03]} 50. Be6+ {[%clk 0:00:05]}  Kg7 {[%clk 0:00:03]} 51. Nxd5 {[%clk 0:00:05]}  Rxb2 {[%clk 0:00:03]} 52. Nf4 {[%clk 0:00:04]}  Bb7+ {[%clk 0:00:03]} 53. Bd5 {[%clk 0:00:04]}  Bxd5+ {[%clk 0:00:01]} 54. Nxd5 {[%clk 0:00:05]}  b5 {[%clk 0:00:02]} 55. Re6 {[%clk 0:00:05]}  Bf8 {[%clk 0:00:02]} 56. Nxf6 {[%clk 0:00:06]}  Rxa2 {[%clk 0:00:02]} 57. Nh5+ {[%clk 0:00:06]}  Kf7 {[%clk 0:00:02]} 58. Rf6+ {[%clk 0:00:07]}  Kg8 {[%clk 0:00:03]} 59. g5 {[%clk 0:00:07]}  a4 {[%clk 0:00:02]} 60. g6 {[%clk 0:00:07]}  a3 {[%clk 0:00:03]} 61. Ra6 {[%clk 0:00:07]}  Ra1 {[%clk 0:00:02]} 62. Ra8 {[%clk 0:00:07]}  a2 {[%clk 0:00:01]} 63. g7 {[%clk 0:00:07]}  Rf1+ {[%clk 0:00:01]} 64. Kg2 {[%clk 0:00:07]}  a1=Q {[%clk 0:00:02]} 65. gxf8=Q+ {[%clk 0:00:07]}  Rxf8 {[%clk 0:00:01]} 66. Rxa1 {[%clk 0:00:08]}  Rf5 {[%clk 0:00:02]} 67. Ng3 {[%clk 0:00:07]}  Rd5 {[%clk 0:00:02]} 68. Ne2 {[%clk 0:00:08]}  b4 {[%clk 0:00:03]} 69. Kf3 {[%clk 0:00:08]}  Rb5 {[%clk 0:00:04]} 70. Rb1 {[%clk 0:00:08]}  b3 {[%clk 0:00:05]} 71. Ke4 {[%clk 0:00:09]}  Kf7 {[%clk 0:00:06]} 72. Kd3 {[%clk 0:00:09]}  Ke6 {[%clk 0:00:06]} 73. Kc4 {[%clk 0:00:10]}  Rg5 {[%clk 0:00:07]} 74. Rxb3 {[%clk 0:00:10]}  Kd6 {[%clk 0:00:08]} 75. Rb6+ {[%clk 0:00:10]}  Kc7 {[%clk 0:00:08]} 76. Rb5 {[%clk 0:00:10]}  Rg2 {[%clk 0:00:09]} 77. Nc3 {[%clk 0:00:10]}  Rg4 {[%clk 0:00:09]} 78. Rc5+ {[%clk 0:00:11]}  Kd6 {[%clk 0:00:09]} 79. Nb5+ {[%clk 0:00:11]}  Ke6 {[%clk 0:00:09]} 80. Re5+ {[%clk 0:00:11]}  Kd7 {[%clk 0:00:09]} 81. Kc5 {[%clk 0:00:11]}  Rg1 {[%clk 0:00:09]} 82. Re3 {[%clk 0:00:10]}  Rc1+ {[%clk 0:00:09]} 83. Rc3 {[%clk 0:00:10]}  Rb1 {[%clk 0:00:10]} 84. d5 {[%clk 0:00:11]}  Rg1 {[%clk 0:00:10]} 85. Rh3 {[%clk 0:00:11]}  Rc1+ {[%clk 0:00:11]} 86. Nc3 {[%clk 0:00:11]}  Kc8 {[%clk 0:00:12]} 87. Kc6 {[%clk 0:00:11]}  Kb8 {[%clk 0:00:12]} 88. d6 {[%clk 0:00:11]}  Ka7 {[%clk 0:00:12]} 89. d7 {[%clk 0:00:10]}  Rb1 {[%clk 0:00:12]} 90. Nb5+ {[%clk 0:00:09]}  Ka6 {[%clk 0:00:11]} 91. Ra3# {[%clk 0:00:08]} 1-0


[Site "https://www.chess.com"]

[Event "Titled Tuesday Blitz September 27 Early 2022"]
[White "Wachinger, Guenther"]
[Black "Umarov, Sabir"]
[WhiteFideId "4604261"]
[BlackFideId "14200538"]
[WhiteElo "2212"]
[BlackElo "2411"]
[Result "0-1"]
[Round "09"]
[TimeControl "180+1"]
[Date "2022.09.27"]
[WhiteClock "0:00:18"]
[BlackClock "0:00:26"]

1. e4 {[%clk 0:03:00]}  g6 {[%clk 0:02:59]} 2. d4 {[%clk 0:03:00]}  Bg7 {[%clk 0:02:59]} 3. Nc3 {[%clk 0:03:01]}  c6 {[%clk 0:02:59]} 4. Nf3 {[%clk 0:03:01]}  d5 {[%clk 0:02:59]} 5. h3 {[%clk 0:03:02]}  dxe4 {[%clk 0:02:54]} 6. Nxe4 {[%clk 0:03:03]}  Nd7 {[%clk 0:02:53]} 7. Bd3 {[%clk 0:02:58]}  Ngf6 {[%clk 0:02:52]} 8. c3 {[%clk 0:02:58]}  O-O {[%clk 0:02:51]} 9. O-O {[%clk 0:02:58]}  Nxe4 {[%clk 0:02:42]} 10. Bxe4 {[%clk 0:02:59]}  Re8 {[%clk 0:02:39]} 11. Bf4 {[%clk 0:02:43]}  Nf6 {[%clk 0:02:23]} 12. Bd3 {[%clk 0:02:39]}  Be6 {[%clk 0:02:20]} 13. Re1 {[%clk 0:02:36]}  Rc8 {[%clk 0:02:19]} 14. Qa4 {[%clk 0:02:34]}  a6 {[%clk 0:02:06]} 15. Rad1 {[%clk 0:02:31]}  Qb6 {[%clk 0:01:59]} 16. Bc1 {[%clk 0:02:17]}  c5 {[%clk 0:01:39]} 17. dxc5 {[%clk 0:02:14]}  Qxc5 {[%clk 0:01:38]} 18. Nd4 {[%clk 0:02:14]}  Bd7 {[%clk 0:01:31]} 19. Qb3 {[%clk 0:02:10]}  e5 {[%clk 0:01:28]} 20. Nc2 {[%clk 0:01:28]}  e4 {[%clk 0:01:26]} 21. Be3 {[%clk 0:01:25]}  Qf5 {[%clk 0:01:24]} 22. Nd4 {[%clk 0:01:22]}  Qe5 {[%clk 0:01:17]} 23. Bc4 {[%clk 0:01:20]}  Re7 {[%clk 0:01:09]} 24. Ne2 {[%clk 0:01:03]}  b5 {[%clk 0:01:07]} 25. Bxf7+ {[%clk 0:00:50]}  Rxf7 {[%clk 0:01:05]} 26. Bd4 {[%clk 0:00:51]}  Qe6 {[%clk 0:01:03]} 27. Qa3 {[%clk 0:00:43]}  Bf8 {[%clk 0:00:58]} 28. Qa5 {[%clk 0:00:33]}  Bc6 {[%clk 0:00:46]} 29. Qxa6 {[%clk 0:00:30]}  Ra8 {[%clk 0:00:44]} 30. Qb6 {[%clk 0:00:28]}  Rb7 {[%clk 0:00:40]} 31. Nf4 {[%clk 0:00:26]}  Qc8 {[%clk 0:00:27]} 32. Qxb7 {[%clk 0:00:17]}  Bxb7 {[%clk 0:00:26]} 33. Bxf6 {[%clk 0:00:18]}  Qf5 {[%clk 0:00:26]} 0-1


[Site "https://www.chess.com"]

[Event "Titled Tuesday Blitz September 27 Early 2022"]
[White "Wagner, Dennis"]
[Black "Le, Tuan Minh"]
[WhiteFideId "24650684"]
[BlackFideId "12401153"]
[WhiteElo "2355"]
[BlackElo "2530"]
[Result "1-0"]
[Round "09"]
[TimeControl "180+1"]
[Date "2022.09.27"]
[WhiteClock "0:00:11"]
[BlackClock "0:00:05"]

1. e4 {[%clk 0:03:00]}  c5 {[%clk 0:02:54]} 2. Nf3 {[%clk 0:02:58]}  Nf6 {[%clk 0:02:54]} 3. e5 {[%clk 0:02:54]}  Nd5 {[%clk 0:02:53]} 4. Nc3 {[%clk 0:02:55]}  e6 {[%clk 0:02:54]} 5. g3 {[%clk 0:02:49]}  Nc6 {[%clk 0:02:53]} 6. Bg2 {[%clk 0:02:46]}  d6 {[%clk 0:02:53]} 7. exd6 {[%clk 0:02:39]}  Bxd6 {[%clk 0:02:54]} 8. Nxd5 {[%clk 0:02:34]}  exd5 {[%clk 0:02:54]} 9. O-O {[%clk 0:02:35]}  O-O {[%clk 0:02:55]} 10. d4 {[%clk 0:02:35]}  Bg4 {[%clk 0:02:55]} 11. dxc5 {[%clk 0:02:35]}  Bxc5 {[%clk 0:02:56]} 12. h3 {[%clk 0:02:33]}  Bh5 {[%clk 0:02:56]} 13. c3 {[%clk 0:02:32]}  Re8 {[%clk 0:02:56]} 14. Bf4 {[%clk 0:02:21]}  Bg6 {[%clk 0:02:49]} 15. Qb3 {[%clk 0:02:04]}  Bb6 {[%clk 0:02:39]} 16. Rad1 {[%clk 0:01:59]}  Be4 {[%clk 0:02:37]} 17. Ng5 {[%clk 0:01:52]}  Na5 {[%clk 0:02:07]} 18. Qb5 {[%clk 0:01:31]}  a6 {[%clk 0:02:00]} 19. Qa4 {[%clk 0:01:02]}  Bxg2 {[%clk 0:01:59]} 20. Kxg2 {[%clk 0:01:03]}  h6 {[%clk 0:01:59]} 21. Nf3 {[%clk 0:00:53]}  Nc4 {[%clk 0:01:51]} 22. Qc2 {[%clk 0:00:38]}  Rc8 {[%clk 0:00:58]} 23. b3 {[%clk 0:00:38]}  Na5 {[%clk 0:00:58]} 24. Qf5 {[%clk 0:00:30]}  Rxc3 {[%clk 0:00:30]} 25. Rxd5 {[%clk 0:00:25]}  Qc8 {[%clk 0:00:30]} 26. Bd2 {[%clk 0:00:13]}  Rxf3 {[%clk 0:00:12]} 27. Qxf3 {[%clk 0:00:09]}  Nc6 {[%clk 0:00:12]} 28. Re1 {[%clk 0:00:09]}  Rd8 {[%clk 0:00:08]} 29. Rxd8+ {[%clk 0:00:08]}  Qxd8 {[%clk 0:00:09]} 30. Be3 {[%clk 0:00:08]}  Bc7 {[%clk 0:00:07]} 31. Rd1 {[%clk 0:00:09]}  Qe8 {[%clk 0:00:08]} 32. Bf4 {[%clk 0:00:07]}  Bb6 {[%clk 0:00:08]} 33. Rd2 {[%clk 0:00:07]}  Qe6 {[%clk 0:00:06]} 34. Qd5 {[%clk 0:00:07]}  Qf6 {[%clk 0:00:07]} 35. h4 {[%clk 0:00:07]}  Ba5 {[%clk 0:00:06]} 36. Re2 {[%clk 0:00:06]}  Kh7 {[%clk 0:00:05]} 37. Qe4+ {[%clk 0:00:06]}  g6 {[%clk 0:00:05]} 38. h5 {[%clk 0:00:06]}  Bb4 {[%clk 0:00:03]} 39. hxg6+ {[%clk 0:00:06]}  Qxg6 {[%clk 0:00:04]} 40. Qxg6+ {[%clk 0:00:06]}  Kxg6 {[%clk 0:00:05]} 41. Re4 {[%clk 0:00:05]}  h5 {[%clk 0:00:05]} 42. Re8 {[%clk 0:00:05]}  Kf6 {[%clk 0:00:04]} 43. Be3 {[%clk 0:00:04]}  Kf5 {[%clk 0:00:04]} 44. f3 {[%clk 0:00:04]}  Bd6 {[%clk 0:00:04]} 45. Kf2 {[%clk 0:00:04]}  Ne5 {[%clk 0:00:04]} 46. Rh8 {[%clk 0:00:04]}  Kg6 {[%clk 0:00:03]} 47. Bf4 {[%clk 0:00:04]}  Nd3+ {[%clk 0:00:03]} 48. Ke3 {[%clk 0:00:05]}  Nxf4 {[%clk 0:00:03]} 49. gxf4 {[%clk 0:00:06]}  Bc5+ {[%clk 0:00:04]} 50. Ke4 {[%clk 0:00:06]}  Ba3 {[%clk 0:00:04]} 51. f5+ {[%clk 0:00:07]}  Kg5 {[%clk 0:00:04]} 52. Rg8+ {[%clk 0:00:07]}  Kf6 {[%clk 0:00:05]} 53. Rh8 {[%clk 0:00:07]}  Kg5 {[%clk 0:00:05]} 54. Rg8+ {[%clk 0:00:07]}  Kf6 {[%clk 0:00:06]} 55. f4 {[%clk 0:00:08]}  Bc1 {[%clk 0:00:01]} 56. Rg5 {[%clk 0:00:08]}  h4 {[%clk 0:00:01]} 57. Rh5 {[%clk 0:00:09]}  Ke7 {[%clk 0:00:02]} 58. Rxh4 {[%clk 0:00:09]}  Kd6 {[%clk 0:00:03]} 59. Rh6+ {[%clk 0:00:10]}  Kc5 {[%clk 0:00:03]} 60. Rf6 {[%clk 0:00:10]}  Kb4 {[%clk 0:00:03]} 61. Rxf7 {[%clk 0:00:10]}  b5 {[%clk 0:00:04]} 62. Ra7 {[%clk 0:00:10]}  a5 {[%clk 0:00:05]} 63. f6 {[%clk 0:00:11]}  Bb2 {[%clk 0:00:04]} 64. f7 {[%clk 0:00:11]}  Bg7 {[%clk 0:00:05]} 65. Ra8 {[%clk 0:00:11]}  Ka3 {[%clk 0:00:05]} 66. Rxa5+ {[%clk 0:00:11]}  Kb4 {[%clk 0:00:05]} 67. Ra8 {[%clk 0:00:11]} 1-0


[Site "https://www.chess.com"]